bitfinex/quotes_BTCUSD_20250714
["timestamp","ask_amount","ask_price","bid_price","bid_amount"]
[1752478070391,0.22908581,122270.0,122260.0,0.29736495]
[1752478070595,0.2045509,122270.0,122260.0,0.1256]
[1752478070768,0.2045509,122270.0,122260.0,0.13377922]
[1752478070974,0.00817868,122260.0,122250.0,0.18812653]
[1752478071180,0.00817868,122260.0,122250.0,0.31372653]
[1752478071400,0.00817868,122260.0,122250.0,0.32882653]
[1752478071575,0.21272918,122270.0,122260.0,0.18812299]
[1752478071786,0.19652918,122270.0,122260.0,0.17994404]
[1752478071985,0.19652878,122270.0,122260.0,0.31372299]
[1752478072234,0.20483176,122270.0,122260.0,0.31372299]
[1752478072437,0.21301038,122270.0,122260.0,0.30554404]
[1752478072643,0.21301031,122270.0,122260.0,0.31372299]
[1752478073018,0.18823176,122270.0,122260.0,0.31372299]
[1752478073219,0.00012456,122270.0,122260.0,0.20448069]
[1752478073476,0.01648072,122270.0,122260.0,0.34618069]
[1752478074202,0.01648072,122270.0,122260.0,0.6668451]
[1752478074440,0.01648065,122270.0,122260.0,0.5412451]
[1752478074637,0.01648065,122270.0,122260.0,0.6819651]
[1752478074842,0.0246588,122270.0,122260.0,0.6819651]
[1752478075154,0.0246588,122270.0,122260.0,0.5564451]
[1752478075355,0.0246588,122270.0,122260.0,0.6667651]
[1752478075564,0.03283708,122270.0,122260.0,0.6667651]
[1752478075983,0.00012456,122270.0,122260.0,0.6667651]
[1752478076165,0.00012456,122270.0,122260.0,0.6819651]
[1752478076346,0.00830257,122270.0,122260.0,0.6819651]
[1752478076549,0.01648078,122270.0,122260.0,0.6667651]
[1752478076976,0.01648072,122270.0,122260.0,0.6667651]
[1752478077331,0.01648072,122270.0,122260.0,0.6506651]
[1752478077527,0.024659,122270.0,122260.0,0.33000069]
[1752478078028,0.04101583,122270.0,122260.0,0.32182187]
[1752478078236,0.18823243,122270.0,122260.0,0.12552]
[1752478078441,0.21145408,122270.0,122260.0,0.12552]
[1752478079288,0.21145408,122270.0,122260.0,0.13369929]
[1752478079289,0.53211849,122270.0,122260.0,0.13369929]
[1752478079448,0.53211849,122270.0,122260.0,0.30546424]
[1752478079644,0.52394001,122270.0,122260.0,0.12552]
[1752478079874,0.2032756,122270.0,122260.0,0.29728502]
[1752478080040,0.1882756,122270.0,122260.0,0.3054641]
[1752478080239,0.2032756,122270.0,122260.0,0.12552]
[1752478080786,0.2042756,122270.0,122260.0,0.12552]
[1752478081191,0.21310568,122270.0,122260.0,0.12552]
[1752478081499,0.21410568,122270.0,122260.0,0.13369922]
[1752478081884,0.61410568,122270.0,122260.0,0.31364319]
[1752478082222,0.59906224,122270.0,122260.0,0.32182201]
[1752478082377,0.59906224,122270.0,122260.0,0.32182207]
[1752478082576,0.60724086,122270.0,122260.0,0.32182214]
[1752478082780,0.59906224,122270.0,122260.0,0.32182214]
[1752478082987,0.60724086,122270.0,122260.0,0.32182214]
[1752478083413,0.59906265,122270.0,122260.0,0.30546417]
[1752478083616,0.61536265,122270.0,122260.0,0.32182227]
[1752478083844,0.59088369,122270.0,122260.0,0.33000122]
[1752478084045,0.59906217,122270.0,122260.0,0.321822]
[1752478084404,0.60724072,122270.0,122260.0,0.33000088]
[1752478084848,0.60724072,122270.0,122260.0,0.30546403]
[1752478085464,0.62344072,122270.0,122260.0,0.31364305]
[1752478085622,0.60708369,122270.0,122260.0,0.31364305]
[1752478085822,0.41095464,122270.0,122260.0,0.32182187]
[1752478087615,0.00212456,122270.0,122260.0,0.67418628]
[1752478087948,0.00212456,122270.0,122260.0,0.35352187]
[1752478088571,0.00212456,122270.0,122260.0,0.67418628]
[1752478089895,0.01093562,122270.0,122260.0,0.67418628]
[1752478090298,0.01093562,122270.0,122260.0,0.33752187]
[1752478090507,0.01093562,122270.0,122260.0,0.32182187]
[1752478090685,0.03547067,122270.0,122260.0,0.30546403]
[1752478090879,0.34795646,122270.0,122260.0,0.32182187]
[1752478091083,0.05909205,122270.0,122260.0,0.32182187]
[1752478091304,0.37157818,122270.0,122260.0,0.32200887]
[1752478091503,0.05091377,122270.0,122260.0,0.32200887]
[1752478091704,0.05692467,122270.0,122260.0,0.31383005]
[1752478091981,0.22049709,122270.0,122260.0,0.32200887]
[1752478092193,0.22867557,122270.0,122260.0,0.19664887]
[1752478092401,0.54934038,122270.0,122260.0,0.29751202]
[1752478092536,0.54934038,122270.0,122260.0,0.13392615]
[1752478092942,0.58147086,122270.0,122260.0,0.29751195]
[1752478093143,0.58147086,122270.0,122260.0,0.13392629]
[1752478093345,0.54875076,122270.0,122260.0,0.13392629]
[1752478093541,0.54875076,122270.0,122260.0,0.14210551]
[1752478093800,0.54875076,122270.0,122260.0,0.15028466]
[1752478094002,0.94875076,122270.0,122260.0,0.15028466]
[1752478094204,0.94875076,122270.0,122260.0,0.18847046]
[1752478094451,0.94875076,122270.0,122260.0,0.31387046]
[1752478094684,0.94875076,122270.0,122260.0,0.30569131]
[1752478094917,0.94057248,122270.0,122260.0,0.31387046]
[1752478095134,0.94057248,122270.0,122260.0,0.30569131]
[1752478095502,0.94057248,122270.0,122260.0,0.14210551]
[1752478095878,0.94057248,122270.0,122260.0,0.13392629]
[1752478096034,0.94057248,122270.0,122260.0,0.14210544]
[1752478096242,0.94057248,122270.0,122260.0,0.30569124]
[1752478096444,0.94057248,122270.0,122260.0,0.13392629]
[1752478096644,0.94057248,122270.0,122260.0,0.31387032]
[1752478096864,0.94057248,122270.0,122260.0,0.30569131]
[1752478097304,0.94057248,122270.0,122260.0,0.31387046]
[1752478097512,0.94057248,122270.0,122260.0,0.32204954]
[1752478097715,0.94057248,122270.0,122260.0,0.30569131]
[1752478098201,0.94057248,122270.0,122260.0,0.31387039]
[1752478098396,0.94057248,122270.0,122260.0,0.31387046]
[1752478098601,0.94057248,122270.0,122260.0,0.32204954]
[1752478098742,0.94057248,122270.0,122260.0,0.33022856]
[1752478098954,0.94057248,122270.0,122260.0,0.32204954]
[1752478099170,0.93239386,122270.0,122260.0,0.32204927]
[1752478099613,0.6035507,122270.0,122260.0,0.18847025]
[1752478099820,0.05633478,122270.0,122260.0,0.33014809]
[1752478100027,0.22014168,122280.0,122270.0,0.17175097]
[1752478100226,0.70622691,122280.0,122270.0,0.18810753]
[1752478100451,0.69804903,122280.0,122270.0,0.19628575]
[1752478100652,0.70622698,122280.0,122270.0,0.17992932]
[1752478100853,0.70622698,122280.0,122270.0,0.17986939]
[1752478100854,0.33862698,122280.0,122270.0,0.17986939]
[1752478101267,0.73862698,122280.0,122270.0,0.18804774]
[1752478101491,0.73044903,122280.0,122270.0,0.19622595]
[1752478101915,0.73862698,122280.0,122270.0,0.17986939]
[1752478102133,0.73862698,122280.0,122270.0,0.17169097]
[1752478102569,0.74062698,122280.0,122270.0,0.17169097]
[1752478102772,0.74062698,122280.0,122270.0,0.17986945]
[1752478102986,0.7324495,122280.0,122270.0,0.00817862]
[1752478103159,1.05311391,122280.0,122270.0,0.01635717]
[1752478104333,1.05311391,122280.0,122270.0,0.02453559]
[1752478104876,1.05411391,122280.0,122270.0,0.02453565]
[1752478105780,1.05411391,122280.0,122270.0,0.01635717]
[1752478106292,1.04593636,122280.0,122270.0,0.00817862]
[1752478106834,1.04593636,122280.0,122270.0,0.01635717]
[1752478107144,1.04593636,122280.0,122270.0,0.00817862]
[1752478107320,0.01635643,122270.0,122260.0,0.3056105]
[1752478107541,0.01635623,122270.0,122260.0,0.3056105]
[1752478108690,0.02453451,122270.0,122260.0,0.3056105]
[1752478109123,0.05553451,122270.0,122260.0,0.3056105]
[1752478110190,0.04735623,122270.0,122260.0,0.3056105]
[1752478110398,0.05553451,122270.0,122260.0,0.3056105]
[1752478110691,0.03963451,122270.0,122260.0,0.3056105]
[1752478111092,0.01635623,122270.0,122260.0,0.3056105]
[1752478111617,0.02453444,122270.0,122260.0,0.3056105]
[1752478112140,0.01635623,122270.0,122260.0,0.3056105]
[1752478112790,0.00817801,122270.0,122260.0,0.31378918]
[1752478112996,1.04223636,122280.0,122270.0,0.17992946]
[1752478113195,0.68987115,122280.0,122270.0,0.19628596]
[1752478113397,0.70622657,122280.0,122270.0,0.17992952]
[1752478113627,0.69804876,122280.0,122270.0,0.18810787]
[1752478113828,0.70622657,122280.0,122270.0,0.18810787]
[1752478114390,0.70922657,122280.0,122270.0,0.18810787]
[1752478114584,0.70922657,122280.0,122270.0,0.17992952]
[1752478114788,0.7092271,122280.0,122270.0,0.17175104]
[1752478114962,0.00817821,122270.0,122260.0,0.29743168]
[1752478115150,0.00817821,122270.0,122260.0,0.31378958]
[1752478116153,0.01635629,122270.0,122260.0,0.31378958]
[1752478116271,0.04795629,122270.0,122260.0,0.31378958]
[1752478116477,0.05613464,122270.0,122260.0,0.31378958]
[1752478116684,0.04795629,122270.0,122260.0,0.31378958]
[1752478116877,0.03235629,122270.0,122260.0,0.31378958]
[1752478117228,0.01735629,122270.0,122260.0,0.31378958]
[1752478117367,0.01935629,122270.0,122260.0,0.31378958]
[1752478117569,0.01117808,122270.0,122260.0,0.31378958]
[1752478117790,0.01935629,122270.0,122260.0,0.31378958]
[1752478118717,0.02753457,122270.0,122260.0,0.31378958]
[1752478119557,0.01935629,122270.0,122260.0,0.31378958]
[1752478121373,0.01935629,122270.0,122260.0,0.30561076]
[1752478121558,0.02753464,122270.0,122260.0,0.31378958]
[1752478121757,0.01935629,122270.0,122260.0,0.31378958]
[1752478122179,0.19928534,122270.0,122260.0,0.31379012]
[1752478122440,0.51177154,122270.0,122260.0,0.321969]
[1752478122570,0.50359312,122270.0,122260.0,0.321969]
[1752478122774,0.19110706,122270.0,122260.0,0.33014782]
[1752478123289,0.19110706,122270.0,122260.0,0.321969]
[1752478123693,0.01935629,122270.0,122260.0,0.33014782]
[1752478123916,0.01117808,122270.0,122260.0,0.33014782]
[1752478124542,0.003,122270.0,122260.0,0.33014782]
[1752478124761,0.003,122270.0,122260.0,0.34644782]
[1752478125393,0.01935629,122270.0,122260.0,0.33014782]
[1752478125809,0.01117808,122270.0,122260.0,0.33014782]
[1752478126266,0.01935636,122270.0,122260.0,0.33014782]
[1752478126510,0.01935629,122270.0,122260.0,0.33014782]
[1752478126858,0.01117808,122270.0,122260.0,0.33014782]
[1752478127072,0.003,122270.0,122260.0,0.36184782]
[1752478127481,0.003,122270.0,122260.0,0.68251223]
[1752478128131,0.003,122270.0,122260.0,0.36184782]
[1752478131716,0.003,122270.0,122260.0,0.34534782]
[1752478132331,0.01117801,122270.0,122260.0,0.33014782]
[1752478133130,0.01117808,122270.0,122260.0,0.33014782]
[1752478133292,0.01935623,122270.0,122260.0,0.33014782]
[1752478133503,0.01117808,122270.0,122260.0,0.33014782]
[1752478133702,0.003,122270.0,122260.0,0.33014782]
[1752478134266,0.01117808,122270.0,122260.0,0.33014782]
[1752478134645,0.403,122270.0,122260.0,0.33014782]
[1752478134848,0.41117808,122270.0,122260.0,0.33014782]
[1752478135048,0.403,122270.0,122260.0,0.33014782]
[1752478135198,0.003,122270.0,122260.0,0.33014782]
[1752478135398,0.01117808,122270.0,122260.0,0.33014782]
[1752478135813,0.003,122270.0,122260.0,0.33014782]
[1752478136037,0.01117801,122270.0,122260.0,0.33014782]
[1752478136478,0.01935609,122270.0,122260.0,0.33014782]
[1752478137119,0.02753424,122270.0,122260.0,0.33014782]
[1752478137322,0.19928487,122270.0,122260.0,0.321969]
[1752478137555,0.02753424,122270.0,122260.0,0.33014782]
[1752478137755,0.01117801,122270.0,122260.0,0.32196894]
[1752478137991,0.003,122270.0,122260.0,0.35366894]
[1752478139472,0.01117808,122270.0,122260.0,0.35366894]
[1752478140174,0.01117808,122270.0,122260.0,0.33706894]
[1752478140352,0.01935629,122270.0,122260.0,0.33706894]
[1752478140556,0.003,122270.0,122260.0,0.33706894]
[1752478140759,0.01117801,122270.0,122260.0,0.33706894]
[1752478142176,0.003,122270.0,122260.0,0.33706894]
[1752478142327,0.01117801,122270.0,122260.0,0.33706894]
[1752478142948,0.01935609,122270.0,122260.0,0.33706894]
[1752478143145,0.003,122270.0,122260.0,0.33706894]
[1752478143994,0.003,122270.0,122260.0,0.35266894]
[1752478144824,0.003,122270.0,122260.0,0.67333335]
[1752478144950,0.003,122270.0,122260.0,0.6878742]
[1752478146011,0.002,122270.0,122260.0,0.6878742]
[1752478146425,0.41635342,122290.0,122280.0,0.18809208]
[1752478146624,0.4245303,122290.0,122280.0,0.45361208]
[1752478147050,0.43270731,122290.0,122280.0,0.45361208]
[1752478147490,0.4245303,122290.0,122280.0,0.45361208]
[1752478147668,0.4265303,122290.0,122280.0,0.45361208]
[1752478148081,0.43770731,122290.0,122280.0,0.45361208]
[1752478148580,0.4295303,122290.0,122280.0,0.45361208]
[1752478148792,0.43770731,122290.0,122280.0,0.45361208]
[1752478149133,0.44588498,122290.0,122280.0,0.43801215]
[1752478149346,0.60943119,122290.0,122280.0,0.43801221]
[1752478149988,0.60125391,122290.0,122280.0,0.44618976]
[1752478150205,0.60125391,122290.0,122280.0,0.43801221]
[1752478150512,0.60125391,122290.0,122280.0,0.44618976]
[1752478150693,0.5930767,122290.0,122280.0,0.45436724]
[1752478150895,0.5930767,122290.0,122280.0,0.44618976]
[1752478151135,0.42953057,122290.0,122280.0,0.45436724]
[1752478151370,0.43770765,122290.0,122280.0,0.45436724]
[1752478151762,0.44588479,122290.0,122280.0,0.45436724]
[1752478151921,0.60943046,122290.0,122280.0,0.44618976]
[1752478152091,0.60125332,122290.0,122280.0,0.45436724]
[1752478152550,0.60125332,122290.0,122280.0,0.44618976]
[1752478152783,0.60125332,122290.0,122280.0,0.43801221]
[1752478153013,0.60943053,122290.0,122280.0,0.43801221]
[1752478153452,0.60943053,122290.0,122280.0,0.44618976]
[1752478153658,0.60125332,122290.0,122280.0,0.44618976]
[1752478153980,0.60943053,122290.0,122280.0,0.44618976]
[1752478154185,0.60943053,122290.0,122280.0,0.43801221]
[1752478154389,0.60125332,122290.0,122280.0,0.44618976]
[1752478154665,0.60943053,122290.0,122280.0,0.43801221]
[1752478154838,0.60943053,122290.0,122280.0,0.44618976]
[1752478155455,0.60943053,122290.0,122280.0,0.43801221]
[1752478155600,0.60943113,122290.0,122280.0,0.4298346]
[1752478155801,0.60125425,122290.0,122280.0,0.42983467]
[1752478155996,0.60125425,122290.0,122280.0,0.44618996]
[1752478156249,0.60125425,122290.0,122280.0,0.43801235]
[1752478156443,0.60125425,122290.0,122280.0,0.44618996]
[1752478156653,0.59307697,122290.0,122280.0,0.44618996]
[1752478157410,0.59307697,122290.0,122280.0,0.45436751]
[1752478157646,0.58489949,122290.0,122280.0,0.46946711]
[1752478158365,0.58489949,122290.0,122280.0,0.46128963]
[1752478158491,0.58489949,122290.0,122280.0,0.46946711]
[1752478158683,0.59307657,122290.0,122280.0,0.46128963]
[1752478159859,0.59307657,122290.0,122280.0,0.46946711]
[1752478160290,0.42135382,122290.0,122280.0,0.46956711]
[1752478160727,0.005,122290.0,122280.0,0.80553152]
[1752478161506,0.003,122290.0,122280.0,0.80553152]
[1752478161703,0.004,122290.0,122280.0,0.80553152]
[1752478161998,0.001,122290.0,122280.0,0.80553152]
[1752478162785,0.20441558,122300.0,122290.0,0.17990003]
[1752478163495,0.20441558,122300.0,122290.0,0.17990009]
[1752478164059,0.16354567,122290.0,122280.0,0.45215692]
[1752478164283,0.17172261,122290.0,122280.0,0.46138983]
[1752478164451,0.17172255,122290.0,122280.0,0.42983467]
[1752478164643,0.17989936,122290.0,122280.0,0.45441222]
[1752478164834,0.18807604,122290.0,122280.0,0.45441228]
[1752478165037,0.18807604,122290.0,122280.0,0.47061228]
[1752478165234,0.01735349,122290.0,122280.0,0.47878983]
[1752478165444,0.01735356,122290.0,122280.0,0.48696731]
[1752478165645,0.01735356,122290.0,122280.0,0.47878983]
[1752478165848,0.01735356,122290.0,122280.0,0.48696731]
[1752478165849,0.001,122290.0,122280.0,0.48696731]
[1752478166091,0.01117674,122290.0,122280.0,0.48696731]
[1752478166300,0.01117668,122290.0,122280.0,0.48696731]
[1752478166805,0.01935342,122290.0,122280.0,0.48696731]
[1752478167099,0.01935342,122290.0,122280.0,0.47878983]
[1752478167100,0.02753036,122290.0,122280.0,0.47878983]
[1752478167304,0.0275303,122290.0,122280.0,0.48696731]
[1752478168891,0.03570731,122290.0,122280.0,0.48696731]
[1752478169098,0.01935342,122290.0,122280.0,0.48696731]
[1752478169430,0.0275303,122290.0,122280.0,0.48696731]
[1752478169643,0.03570724,122290.0,122280.0,0.48696731]
[1752478170041,0.0275303,122290.0,122280.0,0.48696731]
[1752478170780,0.01117668,122290.0,122280.0,0.48696731]
[1752478170982,0.01935349,122290.0,122280.0,0.48696731]
[1752478171421,0.01117668,122290.0,122280.0,0.48696731]
[1752478172875,0.01935349,122290.0,122280.0,0.48696731]
[1752478174025,0.19107643,122290.0,122280.0,0.45425699]
[1752478174196,0.19107643,122290.0,122280.0,0.47878996]
[1752478174437,0.19107643,122290.0,122280.0,0.43801241]
[1752478174581,0.18289942,122290.0,122280.0,0.44618989]
[1752478175015,0.18289942,122290.0,122280.0,0.44618996]
[1752478175210,0.18289942,122290.0,122280.0,0.47056744]
[1752478175460,0.18289942,122290.0,122280.0,0.44618996]
[1752478175665,0.003,122290.0,122280.0,0.45436744]
[1752478175830,0.01935342,122290.0,122280.0,0.47056744]
[1752478176394,0.01935342,122290.0,122280.0,0.48586744]
[1752478176643,0.0275303,122290.0,122280.0,0.48586744]
[1752478177001,0.01935342,122290.0,122280.0,0.48586744]
[1752478177249,0.02753023,122290.0,122280.0,0.48586744]
[1752478177967,0.03570711,122290.0,122280.0,0.48586744]
[1752478178106,0.04388405,122290.0,122280.0,0.48586744]
[1752478179074,0.03570711,122290.0,122280.0,0.48586744]
[1752478179830,0.03570711,122290.0,122280.0,0.47768996]
[1752478179959,0.03570711,122290.0,122280.0,0.48586744]
[1752478180760,0.19925278,122290.0,122280.0,0.4460348]
[1752478180963,0.43978919,122290.0,122280.0,0.46238996]
[1752478181406,0.43161225,122290.0,122280.0,0.46788996]
[1752478182895,0.1910761,122290.0,122280.0,0.46789003]
[1752478183094,0.43161225,122290.0,122280.0,0.47606751]
[1752478183302,0.43978919,122290.0,122280.0,0.46789003]
[1752478183634,0.44796627,122290.0,122280.0,0.46789003]
[1752478183835,0.43978919,122290.0,122280.0,0.46789003]
[1752478184037,0.2598897,122290.0,122280.0,0.47606751]
[1752478184244,0.26806671,122290.0,122280.0,0.47606751]
[1752478184442,0.26806664,122290.0,122280.0,0.47606751]
[1752478187492,0.02753049,122290.0,122280.0,0.47606751]
[1752478187766,0.26806664,122290.0,122280.0,0.47606751]
[1752478188400,0.26806664,122290.0,122280.0,0.45986751]
[1752478188604,0.02753049,122290.0,122280.0,0.45986751]
[1752478188778,0.26806664,122290.0,122280.0,0.45986751]
[1752478189530,0.78110198,122290.0,122280.0,0.25542]
[1752478189729,0.84654968,122290.0,122280.0,0.0055]
[1752478190351,1.24654968,122290.0,122280.0,0.0055]
[1752478190595,0.87107668,122290.0,122280.0,0.0055]
[1752478190976,0.7109089,122290.0,122280.0,0.0055]
[1752478191217,1.03181342,122290.0,122280.0,0.0055]
[1752478191367,1.15669342,122290.0,122280.0,0.0055]
[1752478191942,0.8357889,122290.0,122280.0,0.0055]
[1752478192139,1.54669342,122290.0,122280.0,0.0055]
[1752478192562,1.48124572,122290.0,122280.0,0.0055]
[1752478193380,1.47924572,122290.0,122280.0,0.0055]
[1752478193797,0.46192918,122270.0,122260.0,0.000347]
[1752478194013,1.20826363,122270.0,122260.0,0.000347]
[1752478194430,1.33314363,122270.0,122260.0,0.000347]
[1752478195088,1.35767463,122270.0,122260.0,0.000347]
[1752478196313,1.38205223,122270.0,122260.0,0.001347]
[1752478196929,1.38205223,122270.0,122260.0,0.000347]
[1752478197377,1.38305223,122270.0,122260.0,0.000347]
[1752478197833,1.38205223,122270.0,122260.0,0.000347]
[1752478198049,1.38505223,122270.0,122260.0,0.000347]
[1752478198258,1.26017223,122270.0,122260.0,0.000347]
[1752478198469,1.38505223,122270.0,122260.0,0.000347]
[1752478198598,1.26017223,122270.0,122260.0,0.000347]
[1752478199112,1.38505223,122270.0,122260.0,0.000347]
[1752478199513,1.47048216,122270.0,122260.0,0.000347]
[1752478199759,1.38505223,122270.0,122260.0,0.000347]
[1752478201750,1.26017223,122270.0,122260.0,0.000347]
[1752478202323,1.38505223,122270.0,122260.0,0.000347]
[1752478202881,0.93926771,122270.0,122260.0,0.000347]
[1752478203058,1.35305223,122270.0,122260.0,0.000347]
[1752478203198,1.32852123,122270.0,122260.0,0.000347]
[1752478203393,1.35305123,122270.0,122260.0,0.000347]
[1752478203608,1.20364123,122270.0,122260.0,0.000347]
[1752478203810,1.32852123,122270.0,122260.0,0.000347]
[1752478204244,1.20364123,122270.0,122260.0,0.000347]
[1752478204455,1.32852123,122270.0,122260.0,0.000347]
[1752478205448,1.23524123,122270.0,122260.0,0.000347]
[1752478205685,1.38465223,122270.0,122260.0,0.000347]
[1752478205892,1.03921671,122270.0,122260.0,0.000347]
[1752478206233,1.36012123,122270.0,122260.0,0.000347]
[1752478206524,1.07647799,122270.0,122260.0,0.000347]
[1752478211406,1.04487799,122270.0,122260.0,0.000347]
[1752478212029,0.91999799,122270.0,122260.0,0.000347]
[1752478212236,1.04487799,122270.0,122260.0,0.000347]
[1752478214177,1.06940899,122270.0,122260.0,0.000347]
[1752478214467,0.11296093,122270.0,122260.0,0.1956328]
[1752478214690,0.12114285,122270.0,122260.0,0.22834887]
[1752478214936,0.12114285,122270.0,122260.0,0.21199104]
[1752478214937,0.12114291,122270.0,122260.0,0.21199104]
[1752478215162,0.12114291,122270.0,122260.0,0.22016986]
[1752478215792,0.12932146,122270.0,122260.0,0.22016992]
[1752478215996,0.12932146,122270.0,122260.0,0.22834874]
[1752478216864,0.52932146,122270.0,122260.0,0.22834874]
[1752478217364,0.003,122270.0,122260.0,0.22834874]
[1752478217575,0.003,122270.0,122260.0,0.67413326]
[1752478218006,0.01117808,122270.0,122260.0,0.22834874]
[1752478218222,0.01117808,122270.0,122260.0,0.35322874]
[1752478218438,0.00917801,122270.0,122260.0,0.35322874]
[1752478218629,0.01017801,122270.0,122260.0,0.35322874]
[1752478218843,0.58477548,122280.0,122270.0,0.21222918]
[1752478219039,0.67020541,122280.0,122270.0,0.21222918]
[1752478219554,0.67838336,122280.0,122270.0,0.2040509]
[1752478219779,0.99442871,122280.0,122270.0,0.2040509]
[1752478219943,0.99442871,122280.0,122270.0,0.21222932]
[1752478220150,0.99442871,122280.0,122270.0,0.22040767]
[1752478220151,0.67552419,122280.0,122270.0,0.22040767]
[1752478220367,0.99763471,122280.0,122270.0,0.22040767]
[1752478220979,0.9894569,122280.0,122270.0,0.22040767]
[1752478223124,0.9894569,122280.0,122270.0,0.21222932]
[1752478223891,0.9894569,122280.0,122270.0,0.2040509]
[1752478224228,0.98127902,122280.0,122270.0,0.32889104]
[1752478224427,0.98127902,122280.0,122270.0,0.33706952]
[1752478224792,0.98127902,122280.0,122270.0,0.34524794]
[1752478225365,0.98127902,122280.0,122270.0,0.32864794]
[1752478225577,0.98127902,122280.0,122270.0,0.18745104]
[1752478225772,0.98127902,122280.0,122270.0,0.32046952]
[1752478225944,0.98127902,122280.0,122270.0,0.32864794]
[1752478226175,0.98127902,122280.0,122270.0,0.32046952]
[1752478226589,0.98127902,122280.0,122270.0,0.34394794]
[1752478227222,0.6603745,122280.0,122270.0,0.34394794]
[1752478227424,0.6603745,122280.0,122270.0,0.34394787]
[1752478227630,0.66855185,122280.0,122270.0,0.35212602]
[1752478227841,0.004,122280.0,122270.0,0.54819054]
[1752478228263,0.004,122280.0,122270.0,0.67303054]
[1752478228516,0.002,122280.0,122270.0,0.68757139]
[1752478229212,1.14927993,122310.0,122300.0,0.00817654]
[1752478229359,1.23479288,122310.0,122300.0,0.26599295]
[1752478229560,1.23479288,122310.0,122300.0,0.42134883]
[1752478229767,1.23479288,122310.0,122300.0,0.42952524]
[1752478230239,1.23479288,122310.0,122300.0,0.43770158]
[1752478230423,1.07944821,122310.0,122300.0,0.44587786]
[1752478230642,1.07944821,122310.0,122300.0,0.43770158]
[1752478230791,1.07944821,122310.0,122300.0,0.42952524]
[1752478230988,1.07944821,122310.0,122300.0,0.45430296]
[1752478231200,1.08144821,122310.0,122300.0,0.46247924]
[1752478231395,1.08144821,122310.0,122300.0,0.49427924]
[1752478231594,1.08144821,122310.0,122300.0,0.48610296]
[1752478231985,1.08144821,122310.0,122300.0,0.47792662]
[1752478232191,1.24496713,122310.0,122300.0,0.47792662]
[1752478232420,1.24796713,122310.0,122300.0,0.46975021]
[1752478232623,1.24796713,122310.0,122300.0,0.45365021]
[1752478233494,1.24796713,122310.0,122300.0,0.46182669]
[1752478234112,1.24796713,122310.0,122300.0,0.4859031]
[1752478235150,0.92706261,122310.0,122300.0,0.47772669]
[1752478235405,1.24796713,122310.0,122300.0,0.47772669]
[1752478235599,1.24796713,122310.0,122300.0,0.46182669]
[1752478236037,1.23979152,122310.0,122300.0,0.26624138]
[1752478236235,1.23161571,122310.0,122300.0,0.26624138]
[1752478236672,1.26311571,122310.0,122300.0,0.26624138]
[1752478237801,1.66311571,122310.0,122300.0,0.26624138]
[1752478238652,1.34221119,122310.0,122300.0,0.26624138]
[1752478238868,1.31071119,122310.0,122300.0,0.27441786]
[1752478239090,1.63161571,122310.0,122300.0,0.29041799]
[1752478239386,1.62343977,122310.0,122300.0,0.29041799]
[1752478239828,1.29953525,122310.0,122300.0,0.29041799]
[1752478240048,1.61843977,122310.0,122300.0,0.29041799]
[1752478240258,1.61943977,122310.0,122300.0,0.29041799]
[1752478240474,1.61943977,122310.0,122300.0,0.46212682]
[1752478240683,1.29853525,122310.0,122300.0,0.46212682]
[1752478240905,1.61943977,122310.0,122300.0,0.46212682]
[1752478241118,1.62143977,122310.0,122300.0,0.46212682]
[1752478241342,1.30053525,122310.0,122300.0,0.4703033]
[1752478241570,1.62143977,122310.0,122300.0,0.4703033]
[1752478242216,0.38851295,122310.0,122300.0,0.50185578]
[1752478242436,0.30308302,122310.0,122300.0,0.50185578]
[1752478243096,0.31125843,122310.0,122300.0,0.50185578]
[1752478243563,0.01125843,122310.0,122300.0,0.50185578]
[1752478244514,0.00308302,122310.0,122300.0,0.50185578]
[1752478245279,0.01943397,122310.0,122300.0,0.50185578]
[1752478245482,0.01125843,122310.0,122300.0,0.50185578]
[1752478245706,0.01125836,122310.0,122300.0,0.50185578]
[1752478246464,0.01025836,122310.0,122300.0,0.50185578]
[1752478246657,0.01125836,122310.0,122300.0,0.50185578]
[1752478247068,0.01943377,122310.0,122300.0,0.50185578]
[1752478248156,0.00925836,122310.0,122300.0,0.50185578]
[1752478248667,0.01743383,122310.0,122300.0,0.50185578]
[1752478248849,0.00925836,122310.0,122300.0,0.50185578]
[1752478249261,0.01743383,122310.0,122300.0,0.50185578]
[1752478249610,0.00925836,122310.0,122300.0,0.50185578]
[1752478250566,0.01743377,122310.0,122300.0,0.50185578]
[1752478250806,0.02560931,122310.0,122300.0,0.50185578]
[1752478251155,0.00925836,122310.0,122300.0,0.50185578]
[1752478252252,0.00108302,122310.0,122300.0,0.50185578]
[1752478253341,0.00925836,122310.0,122300.0,0.50185578]
[1752478253549,0.00108302,122310.0,122300.0,0.50185578]
[1752478254999,0.00925843,122310.0,122300.0,0.50185578]
[1752478255243,0.00925836,122310.0,122300.0,0.50185578]
[1752478255890,0.00108302,122310.0,122300.0,0.50185578]
[1752478256578,0.00925836,122310.0,122300.0,0.50185578]
[1752478256768,0.00108302,122310.0,122300.0,0.50185578]
[1752478258926,0.00925836,122310.0,122300.0,0.50185578]
[1752478259146,0.00108302,122310.0,122300.0,0.50185578]
[1752478260852,0.00108302,122310.0,122300.0,0.5731203]
[1752478261200,0.00108302,122310.0,122300.0,0.6978403]
[1752478261407,0.00108302,122310.0,122300.0,0.70628553]
[1752478262261,0.00108302,122310.0,122300.0,0.72182638]
[1752478262461,0.00108302,122310.0,122300.0,0.80725631]
[1752478263007,8.302e-05,122310.0,122300.0,0.80725631]
[1752478264501,8.302e-05,122310.0,122300.0,1.14725631]
[1752478265149,8.302e-05,122310.0,122300.0,0.82635179]
[1752478266176,8.302e-05,122310.0,122300.0,1.14725631]
[1752478268643,8.302e-05,122310.0,122300.0,0.86568186]
[1752478269741,8.302e-05,122310.0,122300.0,1.18658638]
[1752478273211,8.302e-05,122310.0,122300.0,0.86568186]
[1752478273427,8.302e-05,122310.0,122300.0,1.18658638]
[1752478275127,0.24903187,122310.0,122300.0,0.01760138]
[1752478275333,0.61858781,122310.0,122300.0,0.01760138]
[1752478275569,0.6104122,122310.0,122300.0,0.14232138]
[1752478275779,1.0104122,122310.0,122300.0,0.15875453]
[1752478275988,1.0104122,122310.0,122300.0,0.15057799]
[1752478276205,1.0104122,122310.0,122300.0,0.01760138]
[1752478276428,0.68950768,122310.0,122300.0,0.14240138]
[1752478276637,1.0114122,122310.0,122300.0,0.14140138]
[1752478276848,0.69050768,122310.0,122300.0,0.14140138]
[1752478277058,1.0114122,122310.0,122300.0,0.02477799]
[1752478277265,0.70685923,122310.0,122300.0,0.14973799]
[1752478277471,1.02776375,122310.0,122300.0,0.15791453]
[1752478278257,1.02776375,122310.0,122300.0,0.14973799]
[1752478278631,1.02776375,122310.0,122300.0,0.15791453]
[1752478279514,1.02776375,122310.0,122300.0,0.14973799]
[1752478279719,1.02776375,122310.0,122300.0,0.32144669]
[1752478279924,1.02776375,122310.0,122300.0,0.32144682]
[1752478280449,0.62776375,122310.0,122300.0,0.3296233]